[Event "CIS Master Groups 2024"]
[Site "Vasto"]
[Date "2024.04.08"]
[Round "1.18"]
[White "Dardha, Daniel"]
[Black "David, Alberto"]
[Result "1-0"]
[ECO "E11"]
[WhiteElo "2630"]
[BlackElo "2512"]
[Annotator "TA"]
[PlyCount "73"]
[EventDate "2024.04.07"]
[EventType "team-tourn"]
[EventCountry "ITA"]
[SourceTitle "playchess.com"]
[Source "ChessBase"]
[SourceQuality "1"]
[TimeControl "40/5400+30:900+30"]

{[%evp 15,73,7,15,0,0,0,11,-2,19,21,35,29,20,38,52,30,62,0,68,47,83,76,85,83,79,75,108,108,114,111,121,120,120,120,120,127,125,115,123,127,149,133,162,162,173,173,165,150,181,189,224,224,316,290,410,392,395,283,241,225]} 1. d4 {[%emt 0:00:10]} Nf6 {[%emt 0:00:14]} 2. c4 {[%emt 0:00:07]} e6 {[%emt 0:00:05]} 3. g3 {[%emt 0:00:18]} d5 {[%emt 0:02:58]} 4. Bg2 {[%emt 0:00:05]} Bb4+ {[%emt 0:01:58]} 5. Bd2 {[%emt 0:00:28]} Be7 {[%emt 0:02:30]} 6. Nf3 {[%emt 0:00:26][%cal Bg1f3,Bf3e1,Be1d3,Bd3f4][%mdl 32]} c6 {[%emt 0:03:34]} 7. Qc2 {[%emt 0:01:42]} O-O {[%emt 0:00:16]} 8. O-O {[%emt 0:00:08]} Nbd7 {[%emt 0:03:54]} 9. a4 {[%emt 0:03:18]} a5 {[%emt 0:03:40]} 10. Rc1 {[%emt 0:02:13]} Ne4 {[%emt 0:06:57]} 11. Ne1 {[%emt 0:05:52] The position is equal.} f5 {[%emt 0:07:58]} 12. Nd3 {[%emt 0:01:38]} Bd6 {[%emt 0:13:18]} 13. Bf4 {[%emt 0:11:08]} Bxf4 {[%emt 0:09:56]} 14. Nxf4 {[%emt 0:00:24]} Ndf6 {[%emt 0:00:07]} 15. Nd3 {[%emt 0:07:53]} Ng4 {[%emt 0:19:53][%cal Of5f4]} 16. h3 {[%emt 0:11:42]} ({White should try} 16. e3 $14) 16... Nh6 {[%emt 0:01:29]} ({Black should play} 16... Ne3 $1 $11 17. fxe3 Qg5) 17. Nd2 {[%emt 0:02:05]} Nf7 {[%emt 0:05:24]} 18. Nf3 {[%emt 0:04:40] Black is now going downhill.} Ned6 {[%emt 0:03:39]} 19. c5 {[%emt 0:06:23]} Ne4 {[%emt 0:00:26]} 20. e3 {[%emt 0:00:30]} Neg5 {[%emt 0:01:50]} 21. Nxg5 {[%emt 0:03:13]} Qxg5 {[%emt 0:00:27]} 22. b4 {[%emt 0:00:13]} axb4 {[%emt 0:00:30]} 23. Rcb1 {[%emt 0:00:12]} Qf6 {[%emt 0:02:49]} 24. f4 {[%emt 0:01:21]} ({Don't take} 24. Rxb4 e5 $14) 24... g5 {[%emt 0:01:47]} 25. Rxb4 {[%emt 0:00:17]} Kh8 {[%emt 0:00:53]} 26. a5 {[%emt 0:02:05]} Rg8 {[%emt 0:01:43]} 27. Qf2 {[%emt 0:00:35] White is more active.} Qg7 {[%emt 0:03:10]} 28. Kh2 {[%emt 0:02:05]} Ra7 {[%emt 0:01:36]} 29. Rb6 {[%emt 0:04:29][%cal Bb4b6,Bb6a6,Ba6a7][%mdl 32]} Bd7 {[%emt 0:00:42]} 30. a6 {[%emt 0:01:24]} bxa6 {[%emt 0:00:53]} 31. Raxa6 {[%emt 0:00:10]} Rxa6 {[%emt 0:00:08]} 32. Rxa6 {[%emt 0:00:03]} h6 {[%emt 0:01:12]} 33. Nb4 {[%emt 0:05:42]} gxf4 {[%emt 0:00:31]} (33... Rc8 $142 34. Ra7 Be8) 34. exf4 $18 {[%emt 0:03:25]} Rc8 {[%emt 0:00:31]} (34... Nd8 {is a better defense.} 35. Ra7 Re8) 35. Ra7 {[%emt 0:01:51]} Be8 {[%emt 0:00:09] Black is weak on the dark squares} 36. Qe3 {[%emt 0:02:57]} Qf6 {[%emt 0:00:16]} 37. Na6 {[%emt 0:00:11] Weighted Error Value: White=0.12 (very precise) /Black=0.22 (precise) .  Mistake:       	White=1     	Black=3      Inaccurate:     	---       	Black=3      OK:         	White=12    	Black=5} 1-0

[Event "CIS Master Groups 2024"]
[Site "Vasto"]
[Date "2024.04.08"]
[Round "1.20"]
[White "Ladron De Guevara Pinto, Paolo"]
[Black "Collutiis, Duilio"]
[Result "1/2-1/2"]
[ECO "A50"]
[WhiteElo "2394"]
[BlackElo "2334"]
[Annotator "RC"]
[PlyCount "62"]
[EventDate "2024.04.07"]
[EventType "team-tourn"]
[EventCountry "ITA"]
[SourceTitle "playchess.com"]
[Source "ChessBase"]
[SourceQuality "1"]
[TimeControl "40/5400+30:900+30"]

1. d4 {[%emt 0:00:04]} Nf6 {[%emt 0:00:54]} 2. c4 {[%emt 0:00:07]} Nc6 {[%emt 0:01:25]} 3. Nc3 {[%emt 0:00:40]} e5 {[%emt 0:00:13]} 4. d5 {[%emt 0:00:06]} Ne7 {[%emt 0:00:46]} 5. e4 {[%emt 0:02:55]} d6 {[%emt 0:03:19]} 6. h4 {[%emt 0:03:16]} g6 {[%emt 0:04:43]} 7. Be2 {[%emt 0:04:31]} h5 {[%emt 0:00:57]} 8. Bg5 {[%emt 0:05:42]} Nfg8 {[%emt 0:05:26]} 9. Qd2 {[%emt 0:15:09]} Bh6 {[%emt 0:00:59]} 10. O-O-O {[%emt 0:00:54]} f6 {[%emt 0:03:33]} 11. Bxh6 {[%emt 0:05:28]} Nxh6 {[%emt 0:00:16]} 12. Bd3 {[%emt 0:13:52]} Nf7 {[%emt 0:08:43]} 13. Nge2 {[%emt 0:08:37]} c5 {[%emt 0:14:16]} 14. dxc6 {[%emt 0:03:37]} bxc6 {[%emt 0:00:22]} 15. c5 {[%emt 0:01:12]} Be6 {[%emt 0:00:18]} 16. cxd6 {[%emt 0:03:25]} Qxd6 {[%emt 0:01:11]} 17. Bc2 {[%emt 0:14:08]} Qxd2+ {[%emt 0:03:19]} 18. Rxd2 {[%emt 0:00:02]} Rd8 {[%emt 0:06:16]} 19. Rhd1 {[%emt 0:00:19]} Rxd2 {[%emt 0:04:02]} 20. Rxd2 {[%emt 0:00:03]} O-O {[%emt 0:16:38]} 21. Na4 {[%emt 0:01:34]} Rd8 {[%emt 0:00:48]} 22. Nc5 {[%emt 0:02:20]} Bg4 {[%emt 0:04:38]} 23. f3 {[%emt 0:00:45]} Bc8 {[%emt 0:00:07]} 24. Bb3 {[%emt 0:00:24]} Kf8 {[%emt 0:00:15]} 25. Rxd8+ {[%emt 0:04:56]} Nxd8 {[%emt 0:00:11]} 26. Kd2 {[%emt 0:00:14]} Kg7 {[%emt 0:00:57]} 27. Nc1 {[%emt 0:01:45]} g5 {[%emt 0:01:59]} 28. hxg5 {[%emt 0:02:35]} fxg5 {[%emt 0:00:08]} 29. N1d3 {[%emt 0:00:11]} Kf6 {[%emt 0:00:53]} 30. Ke3 {[%emt 0:00:17]} Ng6 {[%emt 0:00:55]} 31. Bc4 {[%emt 0:01:07]} Ke7 {[%emt 0:04:56]} 1/2-1/2

[Event "CIS Master Groups 2024"]
[Site "Vasto"]
[Date "2024.04.08"]
[Round "1.21"]
[White "Moroni, Luca Jr"]
[Black "Fier, Alexandr"]
[Result "1/2-1/2"]
[ECO "A04"]
[WhiteElo "2580"]
[BlackElo "2566"]
[Annotator "TA"]
[PlyCount "85"]
[EventDate "2024.04.07"]
[EventType "team-tourn"]
[EventCountry "ITA"]
[SourceTitle "playchess.com"]
[Source "ChessBase"]
[SourceQuality "1"]
[TimeControl "40/5400+30:900+30"]

{[%evp 9,85,12,6,0,0,0,0,0,0,0,0,0,0,0,0,0,0,0,0,0,0,0,0,0,0,0,0,0,0,0,0,0,0,0,0,0,0,0,0,0,0,0,6,6,9,16,21,13,22,13,17,21,35,29,47,52,46,32,48,42,49,40,37,18,19,0,0,0,22,-6,-7,0,0,0,0,0,0,0]} 1. Nf3 {[%emt 0:00:08]} Nf6 {[%emt 0:00:06]} 2. g3 {[%emt 0:00:05]} c5 {[%emt 0:00:04]} 3. Bg2 {[%emt 0:00:21]} Nc6 {[%emt 0:00:08]} 4. O-O {[%emt 0:00:21]} e5 {[%emt 0:00:14]} 5. e4 {[%emt 0:00:06]} d6 {[%emt 0:00:14]} 6. Nc3 {[%emt 0:00:49]} g6 {[%emt 0:00:17]} 7. d3 {[%emt 0:02:05]} Bg7 {[%emt 0:00:06]} 8. Nd2 {[%emt 0:01:34]} O-O {[%emt 0:00:06]} 9. Nc4 {[%emt 0:02:56]} Bg4 {[%emt 0:02:12]} 10. f3 {[%emt 0:11:33]} Be6 {[%emt 0:00:06]} 11. Ne3 {[%emt 0:02:00]} d5 {[%emt 0:09:57]} 12. exd5 {[%emt 0:08:05]} Nxd5 {[%emt 0:00:04]} 13. Nexd5 {[%emt 0:01:05]} Bxd5 {[%emt 0:00:06]} 14. Nxd5 {[%emt 0:01:37]} Qxd5 {[%emt 0:00:04]} 15. f4 {[%emt 0:01:53]} Qd4+ {[%emt 0:00:59]} 16. Kh1 {[%emt 0:00:42]} exf4 {[%emt 0:00:06]} 17. c3 {[%emt 0:11:40]} Qd7 {[%emt 0:00:18]} 18. Bxf4 {[%emt 0:00:07]} Rad8 {[%emt 0:09:10]} 19. Bg5 {[%emt 0:06:24]} Rde8 {[%emt 0:01:46]} 20. Qd2 {[%emt 0:02:36]} Nd8 {[%emt 0:08:20]} 21. Be3 {[%emt 0:06:50] This pair of bishops is nice.} Ne6 {[%emt 0:00:14]} 22. Rad1 {[%emt 0:00:21]} Rd8 {[%emt 0:01:12]} 23. d4 {[%emt 0:14:27]} cxd4 {[%emt 0:05:55]} 24. cxd4 {[%emt 0:00:19]} Bxd4 {[%emt 0:13:23]} ({Much worse is} 24... Nxd4 $6 25. Rf4 $16) 25. Qb4 {[%emt 0:02:57] Dodges Qb5} Qd6 {[%emt 0:08:12]} 26. Qxb7 {[%emt 0:01:56]} Qb6 {[%emt 0:00:22]} 27. Qxb6 {[%emt 0:03:23]} axb6 {[%emt 0:01:40]} 28. Bc1 {[%emt 0:00:52]} Rd6 {[%emt 0:01:25]} 29. b3 {[%emt 0:03:18]} Rfd8 {[%emt 0:00:06]} 30. Bf3 {[%emt 0:01:26]} Kg7 {[%emt 0:04:37]} 31. Be2 {[%emt 0:01:11]} Bc3 {[%emt 0:02:32]} 32. Rxd6 {[%emt 0:01:15]} Rxd6 {[%emt 0:00:03]} 33. Bc4 {[%emt 0:01:06]} Rd7 {[%emt 0:01:19]} 34. Kg2 {[%emt 0:03:38]} Nc5 {[%emt 0:02:22]} 35. g4 {[%emt 0:01:52]} Ne4 {[%emt 0:06:00]} 36. Bf4 {[%emt 0:01:58]} Bd2 {[%emt 0:04:59] The position is equal.} 37. Kf3 {[%emt 0:04:47]} Bxf4 {[%emt 0:00:46]} 38. Kxf4 $11 {[%emt 0:00:03] KRB-KRN} Nc3 {[%emt 0:00:08]} 39. a3 {[%emt 0:01:26]} b5 {[%emt 0:05:12]} 40. Rc1 {[%emt 0:00:31]} bxc4 {[%emt 0:02:41]} 41. Rxc3 {[%emt 0:15:38]} cxb3 {[%emt 0:15:03]} 42. Rxb3 {[%emt 0:00:10]} Rd4+ {[%emt 0:00:05]} 43. Kg3 {[%emt 0:00:34] Weighted Error Value: White=0.03 (flawless) /Black=0.02 (flawless) .  Inaccurate:     	White=1     	---        OK:         	White=21    	Black=21     Best:        	White=1     	---} 1/2-1/2

[Event "CIS Master Groups 2024"]
[Site "Vasto"]
[Date "2024.04.08"]
[Round "1.23"]
[White "Borgo, Giulio"]
[Black "Godena, Michele"]
[Result "1/2-1/2"]
[ECO "C78"]
[WhiteElo "2309"]
[BlackElo "2429"]
[Annotator "TA"]
[PlyCount "22"]
[EventDate "2024.04.07"]
[EventType "team-tourn"]
[EventCountry "ITA"]
[SourceTitle "playchess.com"]
[Source "ChessBase"]
[SourceQuality "1"]
[TimeControl "40/5400+30:900+30"]

{[%evp 17,22,20,22,0,0,0,0]} 1. e4 {[%emt 0:00:04]} e5 {[%emt 0:00:08]} 2. Nf3 {[%emt 0:00:18]} Nc6 {[%emt 0:00:08]} 3. Bb5 {[%emt 0:00:47]} a6 {[%emt 0:01:34]} 4. Ba4 {[%emt 0:00:08]} Nf6 {[%emt 0:01:31]} 5. O-O {[%emt 0:02:28]} b5 {[%emt 0:02:16]} 6. Bb3 {[%emt 0:00:11]} Bc5 {[%emt 0:00:16]} 7. a4 {[%emt 0:01:59]} Rb8 {[%emt 0:22:27]} 8. axb5 {[%emt 0:03:00]} axb5 {[%emt 0:00:11]} 9. d3 {[%emt 0:05:44]} d6 {[%emt 0:02:14] The position is equal.} 10. Be3 {[%emt 0:02:19]} Bxe3 {[%emt 0:12:32]} 11. fxe3 {[%emt 0:00:22]} O-O {[%emt 0:00:03] A rather calm draw.   OK:         	---       	Black=2} 1/2-1/2

[Event "CIS Master Groups 2024"]
[Site "Vasto"]
[Date "2024.04.08"]
[Round "1.24"]
[White "Bellia, Fabrizio"]
[Black "Podetti, Davide"]
[Result "1-0"]
[ECO "C68"]
[WhiteElo "2384"]
[BlackElo "2280"]
[Annotator "RC"]
[PlyCount "91"]
[EventDate "2024.04.07"]
[EventType "team-tourn"]
[EventCountry "ITA"]
[SourceTitle "playchess.com"]
[Source "ChessBase"]
[SourceQuality "1"]
[TimeControl "40/5400+30:900+30"]

1. e4 {[%emt 0:00:06]} e5 {[%emt 0:00:10]} 2. Nf3 {[%emt 0:00:04]} Nc6 {[%emt 0:00:11]} 3. Bb5 {[%emt 0:00:10]} a6 {[%emt 0:00:56]} 4. Bxc6 {[%emt 0:00:06]} dxc6 {[%emt 0:00:42]} 5. O-O {[%emt 0:00:20]} Qf6 {[%emt 0:10:46]} 6. d4 {[%emt 0:01:34]} exd4 {[%emt 0:00:31]} 7. Bg5 {[%emt 0:00:09]} Qd6 {[%emt 0:00:48]} 8. Nxd4 {[%emt 0:00:12]} c5 {[%emt 0:05:21]} 9. Ne2 {[%emt 0:15:00]} Qxd1 {[%emt 0:18:01]} 10. Rxd1 {[%emt 0:00:15]} Bd7 {[%emt 0:00:35]} 11. Nbc3 {[%emt 0:01:32]} Bd6 {[%emt 0:05:41]} 12. Nd5 {[%emt 0:17:24]} Bc6 {[%emt 0:08:44]} 13. Rd2 {[%emt 0:09:15]} Bxd5 {[%emt 0:08:16]} 14. Rxd5 {[%emt 0:05:40]} h6 {[%emt 0:01:35]} 15. Bh4 {[%emt 0:11:18]} g5 {[%emt 0:09:16]} 16. Bg3 {[%emt 0:00:12]} Nf6 {[%emt 0:01:03]} 17. Rd3 {[%emt 0:00:16]} Bxg3 {[%emt 0:06:27]} 18. Nxg3 {[%emt 0:01:58]} Rd8 {[%emt 0:00:15]} 19. Rad1 {[%emt 0:02:15]} Rxd3 {[%emt 0:00:23]} 20. Rxd3 {[%emt 0:00:11]} Ke7 {[%emt 0:00:35]} 21. f3 {[%emt 0:03:13]} Ke6 {[%emt 0:02:44]} 22. Kf2 {[%emt 0:02:29]} h5 {[%emt 0:01:45]} 23. Nf5 {[%emt 0:10:14]} b6 {[%emt 0:03:31]} 24. h4 {[%emt 0:03:45]} g4 {[%emt 0:00:29]} 25. Ng7+ {[%emt 0:00:47]} Ke7 {[%emt 0:00:14]} 26. e5 {[%emt 0:03:39]} Ne8 {[%emt 0:05:46]} 27. Nxe8 {[%emt 0:01:50]} Rxe8 {[%emt 0:00:08]} 28. fxg4 {[%emt 0:00:35]} hxg4 {[%emt 0:00:05]} 29. Kg3 {[%emt 0:01:38]} Rg8 {[%emt 0:02:06]} 30. Kf4 {[%emt 0:00:24]} Ke6 {[%emt 0:00:29]} 31. c4 {[%emt 0:03:53]} a5 {[%emt 0:03:10]} 32. a4 {[%emt 0:00:48]} Rh8 {[%emt 0:02:08]} 33. g3 {[%emt 0:01:37]} Rh5 {[%emt 0:01:01]} 34. Re3 {[%emt 0:00:52]} Rf5+ {[%emt 0:00:41]} 35. Kxg4 {[%emt 0:00:04]} Rf1 {[%emt 0:00:02]} 36. h5 {[%emt 0:01:04]} Rh1 {[%emt 0:01:10]} 37. Kg5 {[%emt 0:01:13]} Rh3 {[%emt 0:01:13]} 38. b3 {[%emt 0:00:26]} Ke7 {[%emt 0:00:10]} 39. Kg4 {[%emt 0:00:49]} Rh1 {[%emt 0:00:23]} 40. Rf3 {[%emt 0:01:02]} Rh2 {[%emt 0:01:45]} 41. Rf1 {[%emt 0:16:52]} Rb2 {[%emt 0:15:38]} 42. h6 {[%emt 0:00:00]} Rh2 {[%emt 0:00:00]} 43. Rf6 {[%emt 0:00:00]} Re2 {[%emt 0:00:00]} 44. Rf5 {[%emt 0:00:00]} Re4+ {[%emt 0:00:00]} 45. Kf3 {[%emt 0:00:00]} Re1 {[%emt 0:00:00]} 46. Rh5 {[%emt 0:00:00]} 1-0

[Event "CIS Master Groups 2024"]
[Site "Vasto"]
[Date "2024.04.09"]
[Round "2.1"]
[White "Saric, Ivan"]
[Black "Chatalbashev, Boris"]
[Result "1/2-1/2"]
[ECO "B06"]
[WhiteElo "2670"]
[BlackElo "2451"]
[Annotator "TA"]
[PlyCount "110"]
[EventDate "2024.04.07"]
[EventType "team-tourn"]
[EventCountry "ITA"]
[SourceTitle "playchess.com"]
[Source "ChessBase"]
[SourceQuality "1"]
[TimeControl "40/5400+30:900+30"]

{[%evp 35,110,-25,-31,-21,-34,-18,-19,-103,-23,-34,-20,-45,-29,-35,-18,-64,-59,-56,-52,-57,-54,-62,-13,-12,0,0,0,0,0,0,0,0,0,0,0,-48,-50,-52,-46,-46,-45,-49,-59,-85,-90,-79,-79,-81,-68,-120,-108,-109,-102,-213,-226,-245,-227,-184,-93,-81,-8,-8,-8,-8,-8,-8,-8,-32,0,0,0,0,0,0,0,0,0]} 1. e4 {[%emt 0:00:02]} g6 {[%emt 0:06:01]} 2. d4 {[%emt 0:00:07]} Bg7 {[%emt 0:00:08]} 3. Nc3 {[%emt 0:00:14]} d6 {[%emt 0:00:10]} 4. Be3 {[%emt 0:00:16]} a6 {[%emt 0:00:07]} 5. h4 {[%emt 0:01:13]} h5 {[%emt 0:00:09]} 6. Qd2 {[%emt 0:01:05] B06: Modern Defence.} b5 {[%emt 0:00:25]} 7. O-O-O {[%emt 0:01:00]} Nf6 {[%emt 0:00:51]} 8. f3 {[%emt 0:00:06]} c6 {[%emt 0:00:29] 8...b4 might become the main line.} 9. Kb1 {[%emt 0:00:30]} Qc7 {[%emt 0:01:41]} 10. Bf4 {[%emt 0:02:16]} b4 {[%emt 0:02:15]} 11. Na4 {[%emt 0:03:23]} a5 {[%emt 0:00:44]} 12. g3 $146 {[%emt 0:05:11]} ({Predecessor:} 12. Bc4 Ba6 13. Bb3 Nbd7 14. Nh3 O-O 15. Bh6 c5 16. Bxg7 Kxg7 17. c4 bxc3 18. Qxc3 {1-0 Leko,P (2693)-Saric,I (2652) EU-ch blitz Tallinn 2016 (26)}) 12... Ba6 {[%emt 0:09:41]} 13. Nh3 {[%emt 0:17:07]} Bb5 {[%emt 0:00:56]} 14. Nc5 {[%emt 0:03:06]} Qa7 {[%emt 0:11:25]} 15. Bxb5 {[%emt 0:15:44]} cxb5 {[%emt 0:00:32]} 16. Nb3 {[%emt 0:00:07]} Nbd7 {[%emt 0:06:32]} 17. d5 {[%emt 0:03:15]} Nb6 {[%emt 0:01:24]} 18. Be3 {[%emt 0:09:41]} a4 {[%emt 0:10:02]} 19. Bxb6 {[%emt 0:01:24]} Qxb6 {[%emt 0:00:10]} 20. Nd4 {[%emt 0:00:07]} b3 {[%emt 0:07:50]} 21. Nc6 {[%emt 0:04:54]} (21. a3 $11 {keeps the balance.}) 21... Nd7 {[%emt 0:04:16]} ({Black should play} 21... bxa2+ $17 22. Kxa2 Nd7) 22. cxb3 {[%emt 0:03:53]} axb3 {[%emt 0:02:10]} 23. a3 $1 {[%emt 0:00:04]} Ne5 {[%emt 0:03:06]} 24. Nxe5 $1 {[%emt 0:05:42]} Bxe5 {[%emt 0:00:06]} 25. Nf4 {[%emt 0:04:16]} (25. f4 $11 {deserves consideration.} Bg7 26. Rhe1) 25... b4 {[%emt 0:06:29]} 26. Qxb4 {[%emt 0:01:14]} Qxb4 {[%emt 0:00:31]} 27. axb4 {[%emt 0:00:04]} Ra4 {[%emt 0:06:22]} 28. Rhe1 {[%emt 0:03:24]} Kd7 {[%emt 0:05:18]} (28... Rxb4 29. Nd3 Rb7 30. Nxe5 dxe5 31. Rc1 $11) (28... O-O $15 29. Re3 (29. b5 $2 Rfa8 $19) 29... Rxb4) 29. Re3 $1 $11 {[%emt 0:00:20]} Rxb4 {[%emt 0:05:39]} 30. Nd3 {[%emt 0:00:09]} Bd4 {[%emt 0:02:02]} 31. Nxb4 {[%emt 0:01:02]} Bxe3 {[%emt 0:00:02]} 32. Rd3 {[%emt 0:00:20]} Bf2 {[%emt 0:00:12]} 33. f4 {[%emt 0:00:10]} (33. Rxb3 $2 Rb8 (33... Bxg3 34. Nc6 $17) 34. Ka2 (34. f4 $2 Bc5 $19) 34... Bxg3 $19) 33... Rb8 {[%emt 0:00:59]} 34. Nc6 $1 {[%emt 0:00:05]} (34. Rxb3 $2 {perishes.} Bc5 35. Kc2 Rxb4 $19 (35... Bxb4 $2 36. f5 $19)) 34... Rb5 {[%emt 0:00:56]} 35. Kc1 {[%emt 0:01:51]} (35. Rf3 $1 $11 Bg1 36. f5) 35... e6 $15 {[%emt 0:03:10]} 36. Nd4 $1 {[%emt 0:12:07]} Rb4 {[%emt 0:00:29]} 37. dxe6+ {[%emt 0:00:17]} fxe6 {[%emt 0:00:05]} 38. Nxb3 {[%emt 0:00:32]} Rxe4 {[%emt 0:00:07]} 39. Kd2 {[%emt 0:00:36]} Ke7 {[%emt 0:02:11]} 40. Nc1 {[%emt 0:01:36]} Kf6 {[%emt 0:02:13]} 41. Ne2 {[%emt 0:15:28]} d5 {[%emt 0:16:33]} 42. Rf3 {[%emt 0:00:00]} (42. Nc3 $1 $15 Rb4 43. b3) 42... Bc5 $17 {[%emt 0:00:00]} 43. Rb3 {[%emt 0:00:00]} Kf5 {[%emt 0:00:00]} 44. Rb8 {[%emt 0:00:00]} (44. Nc3 $17 Rd4+ 45. Ke2) 44... Kg4 $19 {[%emt 0:00:00]} 45. Rg8 {[%emt 0:00:00]} Kf3 {[%emt 0:00:00]} 46. Nc3 {[%emt 0:00:00] [#]} Rb4 {[%emt 0:00:00]} (46... Bb4 $1 $19 {And now ...d4 would win.} 47. Kd3 Bxc3 48. bxc3 Kxg3 49. Rxg6+ Kxh4 (49... Kxf4 $2 50. Kd2 $19)) 47. Kc2 $17 {[%emt 0:00:00]} Kxg3 {[%emt 0:00:07]} (47... Bf2 $17) 48. Rxg6+ $11 {[%emt 0:00:00]} Kxh4 {[%emt 0:00:08]} 49. Rxe6 {[%emt 0:00:00]} Rxf4 {[%emt 0:00:35]} 50. Nxd5 {[%emt 0:00:00]} Rf5 {[%emt 0:01:22]} 51. Nf6 {[%emt 0:00:00]} Kg5 {[%emt 0:01:17]} 52. Ne4+ $1 {[%emt 0:00:08]} Kf4 {[%emt 0:00:06]} 53. Nxc5 {[%emt 0:01:13]} Rxc5+ {[%emt 0:00:02]} 54. Kd3 {[%emt 0:00:05]} h4 {[%emt 0:00:26]} 55. Rh6 {[%emt 0:00:12]} Kg3 {[%emt 0:04:29]} 1/2-1/2

[Event "CIS Master Groups 2024"]
[Site "Vasto"]
[Date "2024.04.09"]
[Round "2.3"]
[White "Massironi, Marco"]
[Black "Lezzerini, Marco"]
[Result "1-0"]
[ECO "A35"]
[WhiteElo "2181"]
[BlackElo "2110"]
[Annotator "RC"]
[PlyCount "67"]
[EventDate "2024.04.07"]
[EventType "team-tourn"]
[EventCountry "ITA"]
[SourceTitle "playchess.com"]
[Source "ChessBase"]
[SourceQuality "1"]
[TimeControl "40/5400+30:900+30"]

1. c4 {[%emt 0:00:04]} c5 {[%emt 0:06:01]} 2. Nc3 {[%emt 0:00:17]} Nc6 {[%emt 0:00:21]} 3. Nf3 {[%emt 0:00:22]} g6 {[%emt 0:01:29]} 4. e3 {[%emt 0:00:33]} Nf6 {[%emt 0:00:41]} 5. d4 {[%emt 0:00:22]} cxd4 {[%emt 0:00:09]} 6. exd4 {[%emt 0:00:08]} d5 {[%emt 0:00:33]} 7. cxd5 {[%emt 0:00:12]} Nxd5 {[%emt 0:00:04]} 8. Qb3 {[%emt 0:00:10]} e6 {[%emt 0:12:08]} 9. Bb5 {[%emt 0:01:10]} Bg7 {[%emt 0:04:21]} 10. Bg5 {[%emt 0:00:09]} Qb6 {[%emt 0:01:49]} 11. Qa3 {[%emt 0:02:01]} f6 {[%emt 0:02:44]} 12. Nxd5 {[%emt 0:01:38]} exd5 {[%emt 0:00:03]} 13. Bxc6+ {[%emt 0:00:08]} bxc6 {[%emt 0:00:05]} 14. O-O {[%emt 0:00:52]} Kf7 {[%emt 0:15:50]} 15. Rfe1 {[%emt 0:07:02]} Bf8 {[%emt 0:00:20]} 16. Qe3 {[%emt 0:00:44]} fxg5 {[%emt 0:01:41]} 17. Qe8+ {[%emt 0:04:56]} Kg7 {[%emt 0:00:08]} 18. Re7+ {[%emt 0:04:11]} Bxe7 {[%emt 0:00:05]} 19. Qxe7+ {[%emt 0:00:07]} Kg8 {[%emt 0:00:20]} 20. Qe8+ {[%emt 0:15:20]} Kg7 {[%emt 0:00:01]} 21. Qe7+ {[%emt 0:00:13]} Kg8 {[%emt 0:00:05]} 22. Nxg5 {[%emt 0:05:43]} Qb7 {[%emt 0:02:30]} 23. Qe8+ {[%emt 0:00:30]} Kg7 {[%emt 0:00:02]} 24. Qe5+ {[%emt 0:00:10]} Kh6 {[%emt 0:26:46]} 25. Qf6 {[%emt 0:00:50]} Rf8 {[%emt 0:02:15]} 26. Qxf8+ {[%emt 0:00:08]} Kxg5 {[%emt 0:00:05]} 27. f4+ {[%emt 0:14:23]} Kh5 {[%emt 0:00:25]} 28. Qf6 {[%emt 0:04:09]} Kh6 {[%emt 0:00:29]} 29. Re1 {[%emt 0:00:37]} Qb4 {[%emt 0:09:08]} 30. Qh4+ {[%emt 0:00:55]} Kg7 {[%emt 0:00:07]} 31. Re7+ {[%emt 0:00:06]} Qxe7 {[%emt 0:00:29]} 32. Qxe7+ {[%emt 0:00:06]} Kh6 {[%emt 0:01:10]} 33. Qf8+ {[%emt 0:02:24]} Kh5 {[%emt 0:00:06]} 34. h3 {[%emt 0:01:24]} 1-0